[Event "11th Festival Palmanova-A 2022"]
[Site "Strassoldo"]
[Date "2022.12.09"]
[Round "2.10"]
[White "Hercegovac, Neven"]
[Black "Liloni, Francesco Mattia"]
[Result "0-1"]
[ECO "C55"]
[WhiteElo "2230"]
[BlackElo "1909"]
[Annotator "TA"]
[PlyCount "90"]
[EventDate "2022.12.08"]
[EventType "swiss"]
[EventCountry "ITA"]
[SourceTitle "playchess.com"]
[Source "ChessBase"]
[SourceQuality "1"]
[TimeControl "5400+30"]

{[%evp 9,90,32,25,29,34,40,37,27,37,33,26,10,0,-44,-18,-71,-70,-100,-45,-97,-100,-91,-40,-40,-47,-85,-82,-157,-162,-141,-107,-283,-270,-280,-273,-279,-270,-276,-276,-216,-122,-209,-209,-280,-272,-272,-272,-268,-271,-276,-276,-272,-256,-257,-175,-202,-138,-135,-82,-82,-81,-124,-124,-242,-236,-253,-218,-265,-232,-391,-375,-385,-375,-355,-191,-574,-575,-534,-524,-2297,-2295,-1129,-1000]} 1. e4 {[%emt 0:00:03]} e5 {[%emt 0:00:28]} 2. Nf3 {[%emt 0:00:17]} Nc6 {[%emt 0:00:12]} 3. Bc4 {[%emt 0:00:09]} Nf6 {[%emt 0:00:20]} 4. d3 {[%emt 0:00:08]} h6 {[%emt 0:00:25]} 5. c3 {[%emt 0:00:07]} g5 {[%emt 0:00:18]} 6. d4 {[%emt 0:01:21] C55: Two Knights: 4 d3, 4 d4 exd4 5 e5 and Max Lange Attack.} exd4 {[%emt 0:04:25]} 7. e5 {[%emt 0:08:18]} d5 {[%emt 0:00:26]} 8. Bb5 {[%emt 0:01:19][%cal Of3d4] Hoping for Nxd4! White is slightly better.} Ne4 {[%emt 0:01:55]} 9. Nxd4 {[%emt 0:18:40]} (9. cxd4 {simplifies} Bg7 10. O-O O-O 11. Ne1) 9... Bd7 {[%emt 0:00:09] [#]} 10. e6 $146 {[%emt 0:13:14]} ({Predecessor:} 10. O-O Nxe5 11. f3 Nd6 12. Re1 f6 13. Bd3 Qe7 14. Bg6+ Ndf7 15. Nf5 Bxf5 16. Bxf5 {0-1 (50) Donchenko,A (2658)-Ponkratov,P (2628) Chess.com INT 2020}) 10... fxe6 {[%emt 0:00:09]} 11. Bxc6 {[%emt 0:00:48]} Bxc6 {[%emt 0:04:09]} 12. f3 {[%emt 0:10:13]} (12. Qh5+ $11 Kd7 13. Nd2 (13. Qg6 Qe8 $17)) 12... Nf6 {[%emt 0:05:00]} (12... Nc5 13. b4 $11) (12... Nd6 {simplifies} 13. Nxc6 bxc6 14. Be3 Nf5) 13. Qe2 {[%emt 0:10:47]} Qe7 {[%emt 0:00:52]} (13... Qd6 $17 {White must now prevent ...Bd7.} 14. Na3 Kf7 15. Nxc6 Qxc6) 14. Nxe6 {[%emt 0:02:32]} (14. Nxc6 $15 bxc6 15. O-O) 14... Kf7 $17 {[%emt 0:00:17]} 15. Nxf8 {[%emt 0:00:30]} Qxe2+ {[%emt 0:00:12]} (15... Rhxf8 $6 16. Qxe7+ Kxe7 17. Be3 $11) (15... Re8 $17 {[%csl Ge8][%cal Re7e2]} 16. Qxe7+ Rxe7+ 17. Kd2 Rxf8) 16. Kxe2 $15 {[%emt 0:00:02][%cal Oc1e3]} Re8+ {[%emt 0:00:11]} 17. Kf2 {[%emt 0:01:48][%cal Oc1e3]} Rhxf8 {[%emt 0:03:56] Black is more active.} (17... Kxf8 $6 18. Na3 $11) 18. Be3 {[%emt 0:06:00]} (18. Rd1 $142) 18... Kg6 $1 $17 {[%emt 0:01:33]} 19. Bd4 {[%emt 0:01:51][%cal Od4f6]} Bb5 {[%emt 0:02:45] Strongly threatening ...Re2+.} 20. Na3 $2 {[%emt 0:04:00]} (20. Rd1 $17) 20... Re2+ $19 {[%emt 0:00:27]} 21. Kg1 {[%emt 0:00:28]} Bd3 {[%emt 0:11:27]} (21... Rxb2 22. c4 (22. Bxa7 $2 b6 $19) 22... Rd2 23. Nxb5 $11) 22. Rd1 {[%emt 0:02:23] [#]} Ne4 $1 {[%emt 0:02:20][%mdl 512]} 23. h3 {[%emt 0:04:06] [#]} (23. Rxd3 $2 Re1#) (23. fxe4 $2 {is a self mate.} Bxe4) 23... Nd2 $1 {[%emt 0:00:23]} 24. Bf2 {[%emt 0:04:42] [#]} Rfe8 {[%emt 0:02:13]} (24... Nxf3+ $1 $19 {[%mdl 512]} 25. gxf3 Rxf3) 25. b3 {[%emt 0:03:35]} (25. h4 $17 {was worth a try.}) 25... b5 {[%emt 0:05:51]} 26. Bxa7 {[%emt 0:03:24]} Re1+ {[%emt 0:02:15]} 27. Kh2 {[%emt 0:01:04]} Nf1+ {[%emt 0:01:18]} 28. Rxf1 {[%emt 0:00:26]} Bxf1 {[%emt 0:00:09]} 29. Rxe1 {[%emt 0:01:49]} Rxe1 {[%emt 0:00:07][%mdl 4096] Endgame KRB-KBN} 30. Nc2 {[%emt 0:00:02] Prevents Ra1.} Re2 {[%emt 0:00:57][%csl LRc2,LRg2]} 31. Ne3 {[%emt 0:00:02]} Rxa2 {[%emt 0:00:12]} 32. Bd4 {[%emt 0:00:10]} Bd3 {[%emt 0:01:02][%cal Ob5b4]} 33. Nxd5 {[%emt 0:00:06]} Ra3 {[%emt 0:07:02]} (33... Rb2 $142 34. b4 c6) 34. b4 $17 {[%emt 0:00:22]} Ra2 {[%emt 0:00:46]} 35. h4 {[%emt 0:00:34]} c6 {[%emt 0:03:05]} (35... gxh4 $2 36. Nf4+ (36. Nxc7 $2 {is the wrong capture.} Bf1 $19) 36... Kf5 37. Nxd3 $18) 36. Ne3 {[%emt 0:02:33]} (36. Ne7+ $17 {keeps fighting.} Kf7 37. Nxc6) 36... gxh4 $19 {[%emt 0:01:38]} 37. Kh3 {[%emt 0:00:01]} Kh5 {[%emt 0:01:13]} 38. Bf6 {[%emt 0:00:58]} Re2 {[%emt 0:00:37]} 39. Bd4 {[%emt 0:00:19]} (39. g4+ {was necessary.} Kg6 40. Bd4) 39... Kg5 {[%emt 0:01:30] aiming for ...Kf4.} 40. Nd1 {[%emt 0:00:41]} Bf5+ {[%emt 0:00:16]} 41. Kh2 {[%emt 0:00:09]} h3 {[%emt 0:00:35]} (41... h5 $142 {And now ...h3 would win.} 42. Nf2 Re1) 42. Nf2 {[%emt 0:00:11]} (42. Ne3) 42... hxg2 {[%emt 0:00:15] Black is clearly winning.} 43. Kxg2 {[%emt 0:00:02]} Kf4 {[%emt 0:00:25]} 44. Bg7 {[%emt 0:00:32]} Re6 {[%emt 0:00:09] ( -> ...Rg6+)} 45. Bd4 {[%emt 0:00:22]} Rg6+ {[%emt 0:00:08] Weighted Error Value: White=0.54/Black=0.18 (very precise)} 0-1

[Event "11th Festival Palmanova-A 2022"]
[Site "Strassoldo"]
[Date "2022.12.09"]
[Round "2.11"]
[White "Urbani, Gabriel"]
[Black "Persico, Lorenzo"]
[Result "1-0"]
[ECO "B33"]
[WhiteElo "2110"]
[BlackElo "1930"]
[Annotator "TA"]
[PlyCount "71"]
[EventDate "2022.12.08"]
[EventType "swiss"]
[EventCountry "ITA"]
[SourceTitle "playchess.com"]
[Source "ChessBase"]
[SourceQuality "1"]
[TimeControl "5400+30"]

{[%evp 19,71,0,0,0,5,0,2,-33,-23,-33,-14,-18,0,0,0,-6,0,-16,38,0,0,-4,-9,-5,8,-197,260,263,259,248,291,253,286,298,519,514,620,598,872,385,1071,563,3619,3223,5019,3434,29990,29991,29991,29992,29993,1918,29992,29993]} 1. e4 {[%emt 0:00:03]} c5 {[%emt 0:03:43]} 2. Nf3 {[%emt 0:00:11]} Nc6 {[%emt 0:00:26]} 3. d4 {[%emt 0:00:15]} cxd4 {[%emt 0:00:12]} 4. Nxd4 {[%emt 0:00:11]} Nf6 {[%emt 0:00:19]} 5. Nc3 {[%emt 0:00:42]} e5 {[%emt 0:00:06]} 6. Ndb5 {[%emt 0:00:40]} d6 {[%emt 0:00:07]} 7. Nd5 {[%emt 0:04:30]} Nxd5 {[%emt 0:00:18]} 8. exd5 {[%emt 0:00:09]} Nb8 {[%emt 0:00:10]} 9. a4 {[%emt 0:04:36]} Be7 {[%emt 0:03:51]} 10. Be2 {[%emt 0:02:39]} O-O {[%emt 0:05:47]} 11. O-O {[%emt 0:04:28] B33: Sicilian: Pelikan and Sveshnikov Variations.} f5 {[%emt 0:03:27]} 12. f4 {[%emt 0:05:05] [#] aiming for fxe5.} Nd7 {[%emt 0:36:36]} 13. a5 {[%emt 0:04:34] The position is equal.} a6 {[%emt 0:03:17]} 14. Nc3 {[%emt 0:02:34]} b5 {[%emt 0:00:38]} 15. axb6 {[%emt 0:08:11]} Qxb6+ {[%emt 0:00:10]} 16. Kh1 {[%emt 0:00:15]} Bf6 {[%emt 0:01:26]} 17. Na4 {[%emt 0:06:46]} Qc7 {[%emt 0:03:44] [#]} 18. c4 $146 {[%emt 0:03:52]} ({Predecessor:} 18. Be3 Rb8 19. Ra2 exf4 20. Bxf4 Be5 21. b3 Bxf4 22. Rxf4 Nf6 23. Qd4 Re8 24. Nc3 {½-½ (32) Blanco Gramajo,C (2498)-Cuadrado Wentwort Hyde,G (2472) ICCF email 2002}) 18... Nb6 {[%emt 0:05:27]} ({Black should try} 18... Rb8 $11) 19. Be3 {[%emt 0:08:38]} (19. b4 {seems wilder.} e4 20. Be3 Nxc4 21. Qc2) 19... Nxa4 {[%emt 0:00:49]} (19... Nxc4 $2 20. Qc2 $18) 20. Qxa4 {[%emt 0:00:26][%cal Oc4c5]} exf4 {[%emt 0:00:58]} 21. Bxf4 {[%emt 0:00:17]} Bxb2 {[%emt 0:01:10]} 22. Qb4 $2 {[%emt 0:02:02]} Be5 $4 {[%emt 0:05:06][%mdl 8192]} (22... Bxa1 $19 {avoids the disaster.} 23. Rxa1 Rf6) 23. Bxe5 $18 {[%emt 0:00:18]} dxe5 {[%emt 0:00:07]} 24. c5 {[%emt 0:04:34]} e4 {[%emt 0:00:21]} 25. Qd4 {[%emt 0:03:54] Inhibits Qe5.} Kh8 {[%emt 0:06:10]} 26. Rab1 {[%emt 0:03:05]} Rd8 $2 {[%emt 0:04:45]} (26... Bb7 {keeps fighting.} 27. c6 Bc8 28. Qxe4 a5) 27. d6 {[%emt 0:02:05]} Qa7 {[%emt 0:03:39]} 28. Qd5 {[%emt 0:01:56]} Bd7 {[%emt 0:04:51]} 29. c6 {[%emt 0:02:53]} (29. Rb7 $142) 29... Qe3 {[%emt 0:05:06]} (29... Bxc6 30. Qxc6 Qd7 31. Qxd7 Rxd7 32. Rxf5 Rxd6) 30. Bc4 {[%emt 0:03:20] [#] And now c7 would win.} f4 {[%emt 0:01:02]} 31. cxd7 {[%emt 0:00:38] White threatens Rb3 and mate.} f3 {[%emt 0:01:24]} 32. gxf3 {[%emt 0:00:19]} exf3 {[%emt 0:00:38]} 33. Rxf3 {[%emt 0:00:22]} Qh6 {[%emt 0:00:18]} 34. Rbf1 {[%emt 0:00:22]} Rab8 {[%emt 0:00:38]} 35. Qe6 {[%emt 0:00:55]} (35. Qe5 $142 Qg6 36. Bd3 Rg8 37. Bxg6 h6 38. Rh3 Rgf8 39. Rxh6+ Kg8 40. Qe6+ Rf7 41. Qxf7#) 35... Qh5 {[%emt 0:00:40]} 36. Qe7 {[%emt 0:00:21] Weighted Error Value: White=0.71/Black=0.98} 1-0

[Event "11th Festival Palmanova-A 2022"]
[Site "Strassoldo"]
[Date "2022.12.09"]
[Round "2.12"]
[White "Bardone, Lorenzo"]
[Black "Budai, Federico"]
[Result "1/2-1/2"]
[ECO "E01"]
[WhiteElo "2215"]
[BlackElo "1748"]
[Annotator "TA"]
[PlyCount "47"]
[EventDate "2022.12.08"]
[EventType "swiss"]
[EventCountry "ITA"]
[SourceTitle "playchess.com"]
[Source "ChessBase"]
[SourceQuality "1"]
[TimeControl "5400+30"]

{[%evp 15,47,18,33,22,58,37,59,38,102,89,174,87,94,41,63,0,0,-40,-49,-56,-56,-56,-56,-70,-67,-83,-76,-77,-64,-67,-68,-66,-54,-59]} 1. d4 {[%emt 0:00:06]} d5 {[%emt 0:00:29]} 2. c4 {[%emt 0:00:08]} c6 {[%emt 0:00:06]} 3. Nf3 {[%emt 0:00:08]} Nf6 {[%emt 0:00:15]} 4. g3 {[%emt 0:00:10]} e6 {[%emt 0:00:38]} 5. Bg2 {[%emt 0:00:09]} Bd6 {[%emt 0:00:32]} 6. O-O {[%emt 0:00:42]} O-O {[%emt 0:00:14]} 7. Nfd2 {[%emt 0:00:08]} Nbd7 {[%emt 0:00:40]} 8. Nc3 {[%emt 0:00:11]} Bc7 {[%emt 0:01:58]} 9. e4 {[%emt 0:02:25] E01: Catalan: Early deviations.} dxe4 {[%emt 0:02:52]} 10. Ndxe4 {[%emt 0:00:27]} Nxe4 {[%emt 0:01:49]} 11. Nxe4 {[%emt 0:01:55] White is slightly better.} Nb6 {[%emt 0:01:13] [#]} ({Better is} 11... f5 $14 12. Ng5 Qe7) 12. b3 $1 $16 {[%emt 0:15:17]} e5 {[%emt 0:10:58]} (12... f5 $16 {might work better.}) 13. Bb2 {[%emt 0:05:03]} (13. Ba3 $18) 13... exd4 {[%emt 0:08:26]} 14. Bxd4 {[%emt 0:09:12] White is more active.} (14. c5 $16) 14... Bf5 {[%emt 0:01:41] [#]} 15. c5 $146 {[%emt 0:10:48]} (15. Re1 $14) ({Predecessor:} 15. Qd2 Bxe4 16. Bxe4 Be5 17. Rad1 Qc7 18. Bxe5 Qxe5 19. Qc2 f5 20. Bf3 Rad8 21. Rfe1 Rxd1 22. Qxd1 {1-0 (31) Kjartansson,G (2408)-Dolzhikova,O (2239) Caleta 2013}) 15... Nd5 $11 {[%emt 0:02:00]} 16. Qd2 {[%emt 0:10:02]} Re8 {[%emt 0:07:52]} 17. Nd6 {[%emt 0:14:09]} Bxd6 {[%emt 0:06:28]} 18. cxd6 {[%emt 0:00:02]} Qxd6 {[%emt 0:03:05]} 19. Qb2 {[%emt 0:00:13]} f6 {[%emt 0:01:26]} 20. Rfe1 {[%emt 0:11:51]} a6 {[%emt 0:06:09]} 21. Qd2 {[%emt 0:07:54]} Kf7 {[%emt 0:09:50]} 22. Qa5 {[%emt 0:01:17] Black is slightly better.} Rxe1+ {[%emt 0:07:53]} 23. Rxe1 {[%emt 0:00:10]} Re8 {[%emt 0:00:05]} 24. Bxd5+ {[%emt 0:04:10] Weighted Error Value: White=0.24 (precise) /Black=0.18 (very precise)} 1/2-1/2

[Event "11th Festival Palmanova-A 2022"]
[Site "Strassoldo"]
[Date "2022.12.09"]
[Round "3.1"]
[White "Lekic, Dusan"]
[Black "Savanovic, Maksim"]
[Result "1/2-1/2"]
[ECO "D14"]
[WhiteElo "2329"]
[BlackElo "2154"]
[Annotator "TA"]
[PlyCount "23"]
[EventDate "2022.12.08"]
[EventType "swiss"]
[EventCountry "ITA"]
[SourceTitle "playchess.com"]
[Source "ChessBase"]
[SourceQuality "1"]
[TimeControl "5400+30"]

{[%evp 21,22,0,0]} 1. d4 {[%emt 0:00:01]} d5 {[%emt 0:00:00]} 2. c4 {[%emt 0:00:01]} c6 {[%emt 0:00:01]} 3. cxd5 {[%emt 0:00:01]} cxd5 {[%emt 0:00:01]} 4. Nc3 {[%emt 0:00:02]} Nf6 {[%emt 0:00:01]} 5. Nf3 {[%emt 0:00:01]} Nc6 {[%emt 0:00:01]} 6. Bf4 {[%emt 0:00:01]} Bf5 {[%emt 0:00:01]} 7. e3 {[%emt 0:00:01]} e6 {[%emt 0:00:01]} 8. Bd3 {[%emt 0:00:01]} Bxd3 {[%emt 0:00:01]} 9. Qxd3 {[%emt 0:00:01]} Bd6 {[%emt 0:00:01]} 10. Bxd6 {[%emt 0:00:02]} Qxd6 {[%emt 0:00:02]} 11. O-O {[%emt 0:00:02]} O-O {[%emt 0:00:01] [#]} {Predecessor:} 12. Rac1 $146 {D14: Slav Defence: Exchange variation with ...Bf5.} 1/2-1/2

[Event "11th Festival Palmanova-A 2022"]
[Site "Strassoldo"]
[Date "2022.12.09"]
[Round "3.2"]
[White "Belli, Giorgio"]
[Black "Loiacono, Leonardo"]
[Result "1/2-1/2"]
[ECO "B08"]
[WhiteElo "2165"]
[BlackElo "2271"]
[Annotator "TA"]
[PlyCount "61"]
[EventDate "2022.12.08"]
[EventType "swiss"]
[EventCountry "ITA"]
[SourceTitle "playchess.com"]
[Source "ChessBase"]
[SourceQuality "1"]
[TimeControl "5400+30"]

{[%evp 17,61,35,30,-37,-16,-15,29,19,35,40,30,2,22,17,17,26,26,23,23,0,0,0,0,0,-6,-8,18,-13,0,0,0,-3,0,-8,0,0,0,0,0,0,0,0,0,0,0,0]} 1. e4 {[%emt 0:00:04] Bulletin} g6 {[%emt 0:00:12]} 2. d4 {[%emt 0:00:17]} Bg7 {[%emt 0:00:06]} 3. Nc3 {[%emt 0:00:10]} d6 {[%emt 0:00:05]} 4. Nf3 {[%emt 0:00:21]} Nf6 {[%emt 0:00:51]} 5. Be2 {[%emt 0:00:07]} O-O {[%emt 0:00:38]} 6. O-O {[%emt 0:00:05]} c6 {[%emt 0:00:32]} 7. h3 {[%emt 0:00:49]} Qc7 {[%emt 0:01:29]} 8. a4 {[%emt 0:02:24]} Nbd7 {[%emt 0:00:29]} 9. Be3 {[%emt 0:02:21]} b6 {[%emt 0:01:04]} 10. d5 {[%emt 0:04:55] B08: Pirc Defence: Classical System.} (10. Ng5 $11) 10... Bb7 $15 {[%emt 0:03:29]} 11. Nd4 {[%emt 0:06:48] [#]} a6 $146 {[%emt 0:11:24][%cal Rc6d5]} ({Predecessor:} 11... cxd5 12. Ndb5 Qc6 13. exd5 Nxd5 14. Nxd5 Qxd5 15. Qxd5 Bxd5 16. Nc7 Bc4 17. Bxc4 Rac8 18. Nd5 Rxc4 19. Nxe7+ Kh8 20. c3 Nc5 21. Bxc5 Rxc5 22. Rfd1 Re8 23. Nd5 Re2 24. Rab1 {½-½ (24) Richmond,J-Sutherland,A Southport/ Merseyside 1983 EXT 1999 [Bulletin]}) 12. dxc6 {[%emt 0:01:20] White has an edge.} Bxc6 {[%emt 0:00:04]} 13. Nxc6 {[%emt 0:00:25]} Qxc6 {[%emt 0:00:05]} 14. Nd5 {[%emt 0:00:06]} Nxd5 {[%emt 0:04:07]} 15. exd5 {[%emt 0:00:14]} Qb7 {[%emt 0:00:04]} 16. c3 {[%emt 0:02:13]} Nf6 {[%emt 0:08:58]} 17. Bf3 {[%emt 0:11:12]} b5 {[%emt 0:02:48]} 18. Qb3 {[%emt 0:04:41]} Rfb8 {[%emt 0:00:30] The position is equal.} 19. axb5 {[%emt 0:03:18]} axb5 {[%emt 0:01:25]} (19... Qxb5 {simplifies} 20. Qxb5 axb5 21. Rxa8 Rxa8 22. g3 Nd7) 20. Rxa8 {[%emt 0:02:40]} Qxa8 {[%emt 0:00:20]} 21. Re1 {[%emt 0:01:28]} Qa4 {[%emt 0:04:41]} 22. Bd1 {[%emt 0:01:21]} Qxb3 {[%emt 0:00:40]} 23. Bxb3 {[%emt 0:00:04]} b4 {[%emt 0:00:44] [#] And now ...bxc3 would win.} 24. c4 {[%emt 0:00:48]} Nd7 {[%emt 0:03:09] Inhibits c5.} 25. Ba4 {[%emt 0:03:37]} Nb6 {[%emt 0:01:03]} 26. Bxb6 {[%emt 0:01:52]} Rxb6 {[%emt 0:00:05]} 27. b3 {[%emt 0:05:51]} Rb7 {[%emt 0:01:48]} 28. g3 {[%emt 0:00:27]} Ra7 {[%emt 0:00:56]} 29. Kg2 {[%emt 0:00:39]} Bc3 {[%emt 0:00:17]} 30. Re2 {[%emt 0:01:39]} Kg7 {[%emt 0:00:29]} 31. f4 {[%emt 0:00:44] Weighted Error Value: White=0.12 (very precise) /Black=0.07 (flawless)} 1/2-1/2

[Event "11th Festival Palmanova-A 2022"]
[Site "Strassoldo"]
[Date "2022.12.09"]
[Round "3.3"]
[White "Damia, Angelo"]
[Black "Ranfagni, Stefano"]
[Result "1-0"]
[ECO "C01"]
[WhiteElo "2192"]
[BlackElo "1934"]
[Annotator "TA"]
[PlyCount "83"]
[EventDate "2022.12.08"]
[EventType "swiss"]
[EventCountry "ITA"]
[SourceTitle "playchess.com"]
[Source "ChessBase"]
[SourceQuality "1"]
[TimeControl "5400+30"]

{[%evp 10,83,-4,-5,0,-1,-13,-4,45,41,72,82,93,56,95,100,100,98,104,103,96,96,90,110,105,108,108,109,102,92,135,137,129,110,122,94,117,108,168,184,174,179,319,322,350,350,369,252,400,196,444,448,430,442,435,433,423,422,484,468,589,340,575,579,545,509,725,672,683,620,685,742,1774,1705,1337,1264]} 1. e4 {[%emt 0:05:45]} e6 {[%emt 0:00:08]} 2. d4 {[%emt 0:00:03]} d5 {[%emt 0:00:05]} 3. Bd3 {[%emt 0:00:05][%cal Bf1d3,Bd3e4,Be4f3][%mdl 32]} dxe4 {[%emt 0:00:08]} 4. Bxe4 {[%emt 0:00:03]} Nf6 {[%emt 0:00:06]} 5. Bf3 {[%emt 0:00:02]} c5 {[%emt 0:00:09]} 6. Ne2 {[%emt 0:00:27]} Nc6 {[%emt 0:01:06][%cal Rc5d4] C01: French: Exchange Variation.} 7. Be3 {[%emt 0:01:56][%cal Bc1e3,Be3d4,Bd4c5][%mdl 32]} cxd4 {[%emt 0:02:00]} 8. Nxd4 {[%emt 0:00:20]} Nxd4 {[%emt 0:03:47]} (8... Qc7 $11) 9. Qxd4 $14 {[%emt 0:00:05]} Qxd4 {[%emt 0:03:03]} 10. Bxd4 {[%emt 0:00:05]} Bd6 {[%emt 0:00:18]} 11. Nc3 {[%emt 0:00:21]} a6 {[%emt 0:01:22]} 12. O-O-O {[%emt 0:05:18]} O-O {[%emt 0:03:45]} 13. g3 {[%emt 0:00:05] [#] Hoping for Bxf6.} Bc7 $146 {[%emt 0:00:58]} ({Predecessor:} 13... Be7 14. Na4 Nd7 15. Rhe1 Rb8 16. Nb6 Nxb6 17. Bxb6 f6 18. Bc7 Ra8 19. Bd6 Kf7 {½-½ (53) Valls Marti,A (2133)-Mulay,P (1983) Barcelona 2016}) 14. Bc5 {[%emt 0:00:47]} Re8 {[%emt 0:01:21]} 15. Rhe1 {[%emt 0:09:39]} Rb8 {[%emt 0:02:33]} 16. Ne4 {[%emt 0:06:05]} Nxe4 {[%emt 0:03:19]} 17. Bxe4 {[%emt 0:00:10]} ({But not} 17. Rxe4 b6 18. Bd4 (18. Bd6 Bxd6 19. Rxd6 Bb7 $11) 18... Bb7 $14) 17... e5 {[%emt 0:03:09]} 18. Bd6 {[%emt 0:00:52] White has more active pieces. The black rooks are badly placed.} Bxd6 {[%emt 0:01:24]} 19. Rxd6 {[%emt 0:00:06]} Be6 {[%emt 0:02:18]} 20. Rb6 {[%emt 0:05:29]} Re7 {[%emt 0:02:20]} 21. Re3 {[%emt 0:00:06]} Kf8 {[%emt 0:01:17]} (21... Bxa2 $2 22. b3 $18) 22. Ra3 {[%emt 0:03:31]} ({Stronger than} 22. Bxh7 g6 $15) 22... Rd7 {[%emt 0:04:45]} 23. b3 {[%emt 0:04:02]} Bd5 {[%emt 0:00:21] [#]} (23... Rbd8 $16) 24. Bxd5 $1 $18 {[%emt 0:00:32]} Rxd5 {[%emt 0:00:01]} 25. Raxa6 {[%emt 0:00:16][%mdl 4096] Endgame KRR-KRR} Rbd8 {[%emt 0:03:01]} (25... e4 $142) 26. Rxb7 {[%emt 0:00:25] Raa7 is the strong threat.} Rd1+ {[%emt 0:00:10]} 27. Kb2 {[%emt 0:00:04] And now Raa7 would win.} R1d2 {[%emt 0:00:03]} 28. f3 {[%emt 0:02:28] Threatens to win with Raa7.} Rc8 {[%emt 0:00:40]} (28... Rf2 {is a better defense.} 29. Raa7 Rxf3) 29. Ka3 {[%emt 0:00:05]} (29. Raa7 $142) 29... Rdxc2 $2 {[%emt 0:00:33]} (29... Rf2 {was worth a try.} 30. f4 exf4) 30. Raa7 {[%emt 0:00:03]} Rxh2 {[%emt 0:01:34]} 31. Rxf7+ {[%emt 0:00:05]} Kg8 {[%emt 0:00:24]} 32. Rxg7+ {[%emt 0:00:07]} Kh8 {[%emt 0:00:03]} 33. Rge7 {[%emt 0:00:31]} Rh3 {[%emt 0:00:53]} 34. g4 {[%emt 0:02:29][%cal Bg3g4,Bg4g5][%mdl 32]} ({Not} 34. Rxe5 Rxg3 35. f4 Rg2 $18) 34... Rxf3 {[%emt 0:01:38]} 35. Rxh7+ {[%emt 0:01:46]} Kg8 {[%emt 0:00:04]} 36. Rhe7 {[%emt 0:00:16] White is clearly winning.} Rf4 {[%emt 0:00:37]} 37. g5 {[%emt 0:01:06]} e4 {[%emt 0:01:22]} 38. g6 {[%emt 0:00:40]} Rg4 {[%emt 0:00:24]} 39. g7 {[%emt 0:02:10]} Rb8 {[%emt 0:00:51]} 40. Ra4 {[%emt 0:00:40]} Rxg7 {[%emt 0:01:00]} 41. Rxg7+ {[%emt 0:00:06]} Kxg7 {[%emt 0:00:03]} 42. Rxe4 {[%emt 0:00:08] White took control after the opening.   Weighted Error Value: White=0.16 (very precise) /Black=0.37} 1-0